[Event "Arona Festival 2024"]
[Site "Arona Tenerife"]
[Date "2024.06.23"]
[Round "3.1"]
[White "Bilguun, Sumiya"]
[Black "Gupta, Abhijeet"]
[Result "1-0"]
[ECO "B23"]
[WhiteElo "2466"]
[BlackElo "2589"]
[Annotator "RC"]
[PlyCount "89"]
[EventDate "2024.06.20"]
[EventType "swiss"]
[EventCountry "ESP"]
[SourceTitle "playchess.com"]
[Source "ChessBase"]
[SourceQuality "1"]
[TimeControl "5400+30"]

1. e4 {[%emt 0:00:04]} c5 {[%emt 0:01:22]} 2. Nc3 {[%emt 0:00:14]} d6 {[%emt 0:00:22]} 3. f4 {[%emt 0:00:14]} g6 {[%emt 0:00:22]} 4. Nf3 {[%emt 0:00:07]} Bg7 {[%emt 0:00:06]} 5. Bc4 {[%emt 0:00:06]} Nc6 {[%emt 0:00:43]} 6. O-O {[%emt 0:00:07]} e6 {[%emt 0:00:43]} 7. d3 {[%emt 0:00:09]} Nge7 {[%emt 0:00:24]} 8. Qe1 {[%emt 0:00:09]} O-O {[%emt 0:00:40]} 9. Bb3 {[%emt 0:00:11]} Na5 {[%emt 0:01:36]} 10. e5 {[%emt 0:04:28]} d5 {[%emt 0:04:32]} 11. Bd2 {[%emt 0:00:16]} b6 {[%emt 0:03:17]} 12. Ne2 {[%emt 0:10:58]} Ba6 {[%emt 0:02:12]} 13. Ba4 {[%emt 0:18:12]} Nac6 {[%emt 0:10:53]} 14. Bxc6 {[%emt 0:06:59]} Nxc6 {[%emt 0:00:14]} 15. Qg3 {[%emt 0:06:21]} f6 {[%emt 0:03:40]} 16. h4 {[%emt 0:07:26]} fxe5 {[%emt 0:03:49]} 17. fxe5 {[%emt 0:05:44]} Rf5 {[%emt 0:01:47]} 18. Nf4 {[%emt 0:01:22]} Qe7 {[%emt 0:02:37]} 19. h5 {[%emt 0:09:35]} g5 {[%emt 0:02:47]} 20. Nh3 {[%emt 0:04:51]} h6 {[%emt 0:00:56]} 21. Nhxg5 {[%emt 0:00:08]} hxg5 {[%emt 0:02:06]} 22. Bxg5 {[%emt 0:00:03]} Qc7 {[%emt 0:22:03]} 23. h6 {[%emt 0:03:31]} Raf8 {[%emt 0:08:01]} 24. hxg7 {[%emt 0:01:01]} Qxg7 {[%emt 0:00:07]} 25. Qh4 {[%emt 0:04:29]} Rxf3 {[%emt 0:07:23]} 26. Rxf3 {[%emt 0:00:38]} Rxf3 {[%emt 0:00:11]} 27. gxf3 {[%emt 0:00:22]} Nxe5 {[%emt 0:00:12]} 28. Rf1 {[%emt 0:03:51]} c4 {[%emt 0:01:40]} 29. dxc4 {[%emt 0:01:25]} Bxc4 {[%emt 0:01:30]} 30. Rf2 {[%emt 0:00:19]} Be2 {[%emt 0:01:30]} 31. Kg2 {[%emt 0:01:01]} Nxf3 {[%emt 0:05:11]} 32. Rxf3 {[%emt 0:00:07]} Bxf3+ {[%emt 0:00:02]} 33. Kxf3 {[%emt 0:00:06]} Qxb2 {[%emt 0:00:04]} 34. Bf6 {[%emt 0:03:38]} Qa3+ {[%emt 0:00:49]} 35. c3 {[%emt 0:01:13]} Kf7 {[%emt 0:00:10]} 36. Qh6 {[%emt 0:00:43]} Qf8 {[%emt 0:00:43]} 37. Qxf8+ Kxf8 {[%emt 0:00:01]} 38. Kf4 {[%emt 0:00:45]} Ke8 {[%emt 0:00:03]} 39. Bd4 {[%emt 0:00:16]} Ke7 {[%emt 0:00:40]} 40. Ke5 {[%emt 0:00:16]} Kd7 {[%emt 0:00:04]} 41. a4 {[%emt 0:01:25]} Ke7 {[%emt 0:00:20]} 42. Bf2 {[%emt 0:00:07]} Kd7 {[%emt 0:00:05]} 43. Be3 {[%emt 0:00:13]} Ke7 {[%emt 0:00:22]} 44. Bc1 {[%emt 0:00:19]} Kd7 {[%emt 0:00:12]} 45. Ba3 {[%emt 0:00:07]} 1-0

[Event "Arona Festival 2024"]
[Site "Arona Tenerife"]
[Date "2024.06.23"]
[Round "3.2"]
[White "Tsolakidou, Stavroula"]
[Black "Peralta, Fernando"]
[Result "1/2-1/2"]
[ECO "B12"]
[WhiteElo "2421"]
[BlackElo "2562"]
[Annotator "TA"]
[PlyCount "97"]
[EventDate "2024.06.20"]
[EventType "swiss"]
[EventCountry "ESP"]
[SourceTitle "playchess.com"]
[Source "ChessBase"]
[SourceQuality "1"]
[TimeControl "5400+30"]

{[%evp 9,97,-25,-19,-10,-37,-39,-42,-37,-53,-37,-35,-50,-36,-43,-34,-36,-31,-29,-40,-37,-28,-39,-44,-56,-52,-66,-37,-52,-49,-56,-48,-75,-73,-79,-79,-72,-69,-84,-80,-72,-71,-78,-77,-78,-66,-74,-33,-71,-76,-94,-42,-43,-54,-49,-52,-44,-10,-13,0,0,0,-15,0,0,0,0,0,0,0,0,0,0,0,0,0,0,0,0,0,0,0,0,0,0,0,0,0,0,0,0]} 1. e4 {[%emt 0:10:39]} c6 {[%emt 0:00:09]} 2. d4 {[%emt 0:00:14]} d5 {[%emt 0:00:06]} 3. f3 {[%emt 0:00:26]} e6 {[%emt 0:00:22]} 4. Nc3 {[%emt 0:00:31]} Bb4 {[%emt 0:00:16]} 5. a3 {[%emt 0:00:50]} Bxc3+ {[%emt 0:00:58]} 6. bxc3 {[%emt 0:00:06]} dxe4 {[%emt 0:00:11][%cal Oc6c5]} 7. Nh3 {[%emt 0:00:43]} Qa5 {[%emt 0:00:37]} 8. Bd2 {[%emt 0:04:49] [#] Black is slightly better.} e3 {[%emt 0:01:23]} 9. Bxe3 {[%emt 0:00:06]} Qxc3+ {[%emt 0:00:03]} 10. Kf2 {[%emt 0:00:09]} Ne7 {[%emt 0:14:15]} 11. Bd3 {[%emt 0:02:26]} Nd5 {[%emt 0:03:44] Threatens to win with ...Nxe3.} 12. Qd2 {[%emt 0:04:41]} O-O {[%emt 0:17:38]} 13. Ng5 {[%emt 0:04:03]} Qxd2+ 14. Bxd2 {[%emt 0:00:05][%cal Be3d2,Bd2b4,Bb4e7][%mdl 32]} Nf6 {[%emt 0:02:32]} 15. Bb4 {[%emt 0:08:43] A strong pair of Bishops.} Rd8 {[%emt 0:02:15]} 16. Rad1 {[%emt 0:03:53]} b6 {[%emt 0:05:57]} (16... Rxd4 $2 {perishes.} 17. Bxh7+ (17. Bg6 hxg6 18. Rxd4 Nbd7 $14) 17... Nxh7 18. Rxd4 $18) 17. g4 {[%emt 0:19:10]} Nbd7 {[%emt 0:03:21]} (17... Rxd4 18. Bxh7+ Nxh7 19. Rxd4 $16) 18. Be7 {[%emt 0:06:21]} Re8 {[%emt 0:02:27]} 19. Bd6 {[%emt 0:00:11]} Bb7 {[%emt 0:00:24]} 20. h4 {[%emt 0:03:01]} c5 {[%emt 0:08:49]} 21. dxc5 Nxc5 {[%emt 0:00:47]} 22. Bxc5 {[%emt 0:17:05]} bxc5 {[%emt 0:00:08]} 23. Ne4 {[%emt 0:00:04]} Bxe4 {[%emt 0:05:20]} 24. Bxe4 {[%emt 0:00:04]} Rab8 {[%emt 0:00:52]} 25. Rd6 {[%emt 0:00:49]} Rb2 {[%emt 0:11:26]} 26. Rc1 {[%emt 0:00:11]} h6 {[%emt 0:03:29]} 27. g5 {[%emt 0:02:28]} hxg5 {[%emt 0:01:48]} 28. hxg5 {[%emt 0:00:05]} Nxe4+ {[%emt 0:00:07]} 29. fxe4 $17 {[%emt 0:00:05][%mdl 4096] Endgame. KRR-KRR} Ra2 {[%emt 0:02:54]} (29... Kh7 $17 30. Rd7 Kg6 31. Rxa7 Rh8 (31... Kxg5 32. Rxf7 Rg8 33. Ke3 $14)) 30. Ra6 $1 $15 {[%emt 0:00:48]} Re7 {[%emt 0:00:05]} 31. g6 $1 {[%emt 0:01:49]} fxg6 {[%emt 0:00:36]} 32. Kg3 {[%emt 0:00:15]} Rb2 {[%emt 0:06:50]} 33. Rc6 {[%emt 0:00:33] [#] Rc8+ would now be deadly. The position is equal.} Rd7 {[%emt 0:03:19]} 34. Rxc5 {[%emt 0:01:42]} Kf7 {[%emt 0:01:03]} 35. Kg4 {[%emt 0:00:39]} Ke7 {[%emt 0:01:25]} 36. Kg5 {[%emt 0:00:49]} Rd2 {[%emt 0:01:21]} 37. Rc7+ {[%emt 0:02:23]} Kd6 {[%emt 0:00:20]} 38. Rxa7 {[%emt 0:02:36]} Rbxc2 {[%emt 0:00:59]} 39. Rxc2 {[%emt 0:01:14]} Rxc2 {[%emt 0:00:02]} 40. Rxg7 $11 {[%emt 0:00:20] KR-KR} Ke5 {[%emt 0:01:24]} 41. Kxg6 {[%emt 0:02:24]} Rg2+ {[%emt 0:00:40]} 42. Kf7 {[%emt 0:00:04]} Rxg7+ {[%emt 0:00:18]} 43. Kxg7 {[%emt 0:00:04]} Kxe4 {[%emt 0:00:02] KP-KP} 44. Kf6 {[%emt 0:00:07]} e5 {[%emt 0:00:21][%cal Be6e5,Be5e4,Be4e3][%mdl 32]} 45. a4 {[%emt 0:00:04][%cal Ba3a4,Ba4a5,Ba5a6][%mdl 32]} Kd5 {[%emt 0:00:14]} 46. Kf5 {[%emt 0:00:18]} e4 {[%emt 0:00:10]} 47. Kf4 {[%emt 0:00:04]} Kd4 {[%emt 0:00:07]} 48. a5 {[%emt 0:00:03]} e3 {[%emt 0:00:22] ( -> ...e2)} 49. a6 $1 {[%emt 0:00:04] Weighted Error Value: White=0.04 (flawless) /Black=0.05 (flawless) .  Mistake:       	---       	Black=1      Inaccurate:     	White=2     	Black=3      OK:         	White=20    	Black=24     Best:        	White=2     	---        Strong:       	White=3     	---} 1/2-1/2

[Event "Arona Festival 2024"]
[Site "Arona Tenerife"]
[Date "2024.06.23"]
[Round "3.3"]
[White "Socko, Bartosz"]
[Black "Xue, Haowen"]
[Result "1/2-1/2"]
[ECO "B13"]
[WhiteElo "2556"]
[BlackElo "2452"]
[Annotator "TA"]
[PlyCount "50"]
[EventDate "2024.06.20"]
[EventType "swiss"]
[EventCountry "ESP"]
[SourceTitle "playchess.com"]
[Source "ChessBase"]
[SourceQuality "1"]
[TimeControl "5400+30"]

{[%evp 10,50,29,25,13,30,43,20,21,1,15,0,0,0,2,0,4,0,0,0,0,5,0,0,9,-22,-19,-4,-8,0,0,-15,-25,-6,0,0,0,0,0,0,0,0,0]} 1. e4 {[%emt 0:03:16]} c6 {[%emt 0:00:06]} 2. d4 {[%emt 0:00:07]} d5 {[%emt 0:00:04]} 3. exd5 {[%emt 0:00:10]} cxd5 {[%emt 0:00:05]} 4. Bd3 {[%emt 0:00:08]} Nc6 {[%emt 0:00:05]} 5. c3 {[%emt 0:00:03]} Qc7 {[%emt 0:00:05]} 6. h3 {[%emt 0:00:20]} e5 {[%emt 0:02:08]} 7. dxe5 {[%emt 0:00:21]} Nxe5 {[%emt 0:00:05]} 8. Bb5+ {[%emt 0:02:11]} Nc6 {[%emt 0:00:21]} 9. Ne2 {[%emt 0:02:23]} Bd6 {[%emt 0:03:13]} 10. Nd2 {[%emt 0:02:21]} Nf6 {[%emt 0:00:49]} 11. Nf3 {[%emt 0:00:49]} h6 {[%emt 0:01:33]} 12. O-O {[%emt 0:01:45]} O-O {[%emt 0:00:05]} 13. Ned4 {[%emt 0:02:07]} Bd7 {[%emt 0:10:30]} 14. Bd3 {[%emt 0:01:05]} a6 {[%emt 0:04:45] Dodges Nb5} 15. Be3 {[%emt 0:04:05]} Rfe8 {[%emt 0:01:02]} 16. Qc2 {[%emt 0:01:44]} Na5 {[%emt 0:06:13]} 17. Nf5 {[%emt 0:10:01]} Bxf5 {[%emt 0:02:01]} 18. Bxf5 {[%emt 0:00:07] [#]} Rxe3 $1 {[%emt 0:00:24]} 19. fxe3 {[%emt 0:00:13]} Nc4 {[%emt 0:00:04]} 20. Rae1 {[%emt 0:12:50]} Re8 {[%emt 0:04:09][%mdl 1024] Black has compensation.} 21. Qc1 {[%emt 0:00:15]} ({Not} 21. e4 $2 Bc5+ 22. Nd4 Ne3 23. Rxe3 Bxd4 $19) 21... Bg3 {[%emt 0:24:30] The position is equal.} (21... Qb6 $5) 22. Re2 {[%emt 0:01:08]} Bf4 {[%emt 0:00:19]} 23. Rfe1 {[%emt 0:03:04]} Bg3 {[%emt 0:00:07]} 24. Rf1 {[%emt 0:01:36]} Bf4 {[%emt 0:00:08]} 25. Rfe1 {[%emt 0:00:05]} Bg3 {[%emt 0:00:05] Weighted Error Value: White=0.05 (flawless) /Black=0.01 (flawless) .  Inaccurate:     	White=1     	---        OK:         	White=9     	Black=14     Best:        	White=2     	Black=1} 1/2-1/2

[Event "Arona Festival 2024"]
[Site "Arona Tenerife"]
[Date "2024.06.23"]
[Round "3.4"]
[White "Erdos, Viktor"]
[Black "Omelja, Artem"]
[Result "1/2-1/2"]
[ECO "A17"]
[WhiteElo "2539"]
[BlackElo "2435"]
[Annotator "TA"]
[PlyCount "65"]
[EventDate "2024.06.20"]
[EventType "swiss"]
[EventCountry "ESP"]
[SourceTitle "playchess.com"]
[Source "ChessBase"]
[SourceQuality "1"]
[TimeControl "5400+30"]

{[%evp 9,65,0,7,0,0,0,14,0,0,0,0,0,0,-4,0,0,0,0,0,0,0,0,4,0,1,4,11,6,25,18,20,20,22,25,31,34,34,33,35,30,27,19,42,22,35,28,32,0,36,0,33,35,31,20,15,29,21,21]} 1. Nf3 {[%emt 0:04:13]} d5 {[%emt 0:00:09]} 2. e3 {[%emt 0:00:05]} Nf6 {[%emt 0:00:26]} 3. c4 {[%emt 0:00:04]} e6 {[%emt 0:00:06]} 4. Nc3 {[%emt 0:00:54]} Bd6 {[%emt 0:01:42]} 5. d4 {[%emt 0:09:23]} O-O {[%emt 0:06:20]} 6. c5 {[%emt 0:07:06]} Be7 {[%emt 0:00:08]} 7. b4 {[%emt 0:00:08]} b6 {[%emt 0:01:57]} 8. Bb2 {[%emt 0:02:12]} a5 {[%emt 0:03:12]} 9. a3 {[%emt 0:00:15]} c6 {[%emt 0:02:17]} 10. Bd3 {[%emt 0:01:14]} Ba6 {[%emt 0:01:44]} 11. O-O {[%emt 0:00:18]} Bxd3 {[%emt 0:04:25]} 12. Qxd3 {[%emt 0:00:07]} Nbd7 {[%emt 0:00:07]} 13. Rfc1 {[%emt 0:11:04]} Qc7 {[%emt 0:02:03]} 14. Qc2 {[%emt 0:00:16]} Rfc8 {[%emt 0:03:33]} 15. h3 {[%emt 0:00:23]} Qb7 {[%emt 0:00:22]} 16. Rab1 {[%emt 0:03:10]} axb4 17. axb4 {[%emt 0:00:21]} h6 {[%emt 0:01:22]} 18. Ne1 {[%emt 0:07:26][%cal Bf3e1,Be1d3,Bd3b4][%mdl 32]} bxc5 {[%emt 0:04:02]} 19. bxc5 {[%emt 0:00:39]} Bd8 {[%emt 0:00:01][%cal Be7d8,Bd8c7,Bc7b8][%mdl 32]} 20. Nd3 {[%emt 0:01:53]} Rcb8 {[%emt 0:00:15]} 21. Ne2 {[%emt 0:05:27]} Bc7 {[%emt 0:10:42]} 22. Bc3 {[%emt 0:01:20]} Qc8 {[%emt 0:00:40]} 23. Rxb8 {[%emt 0:00:49]} Bxb8 {[%emt 0:03:59]} 24. Rb1 {[%emt 0:10:46]} Bc7 {[%emt 0:03:27]} 25. Nb4 {[%emt 0:04:28]} Nb8 {[%emt 0:01:40]} 26. Qd1 {[%emt 0:05:08]} Nh7 {[%emt 0:05:58][%cal Bf6h7,Bh7f8,Bf8g6][%mdl 32]} 27. Ra1 {[%emt 0:00:56]} Qb7 {[%emt 0:02:35]} 28. Rb1 {[%emt 0:01:09][%cal Ob4d5] [#] Black must now prevent Nxd5!} Qc8 {[%emt 0:00:11]} 29. Ra1 {[%emt 0:00:03]} Qb7 {[%emt 0:00:09]} 30. Ra4 {[%emt 0:00:59]} Nf8 {[%emt 0:00:38]} 31. Qa1 {[%emt 0:00:20]} Rxa4 {[%emt 0:00:11]} 32. Qxa4 {[%emt 0:00:02]} Ng6 {[%emt 0:01:43]} 33. Kf1 {[%emt 0:01:42] Weighted Error Value: White=0.06 (flawless) /Black=0.04 (flawless) .  OK:         	White=9     	Black=12} 1/2-1/2

[Event "Arona Festival 2024"]
[Site "Arona Tenerife"]
[Date "2024.06.23"]
[Round "3.5"]
[White "Krysa, Leandro"]
[Black "Dhulipalla Bala Chandra Prasad"]
[Result "1/2-1/2"]
[ECO "E04"]
[WhiteElo "2535"]
[BlackElo "2420"]
[Annotator "TA"]
[PlyCount "91"]
[EventDate "2024.06.20"]
[EventType "swiss"]
[EventCountry "ESP"]
[SourceTitle "playchess.com"]
[Source "ChessBase"]
[SourceQuality "1"]
[TimeControl "5400+30"]

{[%evp 17,91,40,38,26,41,27,22,35,31,24,67,51,97,104,102,108,101,41,28,41,37,28,41,32,29,21,27,9,10,11,14,11,12,4,10,10,13,9,8,10,36,8,33,7,56,20,21,21,22,7,27,14,50,41,80,80,85,14,16,0,0,0,14,14,52,6,13,0,13,0,13,0,13,13,28,0]} 1. d4 {[%emt 0:00:02]} Nf6 {[%emt 0:05:43]} 2. c4 {[%emt 0:00:50]} e6 {[%emt 0:00:05]} 3. Nf3 {[%emt 0:00:27]} d5 {[%emt 0:00:27]} 4. g3 {[%emt 0:00:43]} dxc4 {[%emt 0:01:27]} 5. Bg2 {[%emt 0:00:39]} Nc6 {[%emt 0:00:05]} 6. Qa4 {[%emt 0:02:28]} Bb4+ {[%emt 0:00:19]} 7. Bd2 {[%emt 0:03:31]} Nd5 {[%emt 0:00:07]} 8. Bxb4 {[%emt 0:02:48]} Ndxb4 {[%emt 0:00:06]} 9. O-O {[%emt 0:02:18]} Rb8 {[%emt 0:09:19]} 10. Na3 {[%emt 0:01:48][%cal Oa4b5]} O-O {[%emt 0:01:53]} 11. Qb5 $1 {[%emt 0:00:54]} (11. Nxc4 $2 b5 12. Qd1 bxc4 $19) 11... e5 {[%emt 0:06:47]} 12. Nxe5 {[%emt 0:14:43][%cal Rg2c6] The position is equal.} Be6 {[%emt 0:00:53]} 13. Rfd1 {[%emt 0:34:16][%cal Od4d5] d5! would now be deadly.} ({Of course not} 13. Nexc4 a6 14. Qh5 g6 $17 (14... Qxd4 15. Rfd1 $17)) (13. Naxc4 Nc2 14. e3 (14. Nxc6 $2 bxc6 15. Qxc6 Nxa1 $19) 14... Nxa1 15. Rxa1 Nxe5 16. Nxe5 c6 $15) (13. Bxc6 Nxc6 14. e3 Nxe5 15. Qxe5 Re8 $15) 13... a6 {[%emt 0:33:55]} 14. Nxc6 {[%emt 0:02:34]} axb5 {[%emt 0:07:25]} (14... bxc6 $14 {feels stronger.} 15. Qa4 Qf6) 15. Nxd8 $16 {[%emt 0:00:12]} Rfxd8 {[%emt 0:00:05]} 16. Nxb5 {[%emt 0:01:26]} c6 {[%emt 0:00:22]} 17. Nc7 {[%emt 0:07:27]} ({Better is} 17. a3 $1 $16) 17... Nc2 $14 {[%emt 0:04:24][%csl LRa1,LRd4] [#]} 18. Nxe6 {[%emt 0:07:15]} fxe6 {[%emt 0:00:09]} 19. Rac1 {[%emt 0:00:03]} Nxd4 {[%emt 0:00:10]} 20. Kf1 {[%emt 0:05:33]} Nb5 {[%emt 0:08:24]} 21. a4 {[%emt 0:02:18]} Nd6 {[%emt 0:01:46]} 22. e4 {[%emt 0:01:24]} e5 {[%emt 0:01:34]} 23. f4 {[%emt 0:01:24]} b5 {[%emt 0:05:07]} 24. axb5 {[%emt 0:01:48]} Rxb5 {[%emt 0:00:24]} 25. fxe5 {[%emt 0:02:29]} Rxe5 {[%emt 0:00:03]} 26. Kg1 {[%emt 0:01:40]} Kf7 {[%emt 0:01:55]} 27. Bf1 {[%emt 0:01:04]} Ke7 {[%emt 0:02:03]} (27... Rxe4 28. Bxc4+ Kf8 29. Rf1+ Ke8 30. Bd3 $16) 28. Bxc4 {[%emt 0:00:41]} Rb8 {[%emt 0:05:53]} 29. Bf1 {[%emt 0:00:38]} c5 {[%emt 0:01:19]} 30. Rd5 {[%emt 0:01:35]} Rxe4 {[%emt 0:02:34]} (30... Rxd5 $11 {should be considered.} 31. exd5 Rxb2) 31. Rcxc5 {[%emt 0:00:21]} Rxb2 {[%emt 0:00:17]} 32. Rc7+ {[%emt 0:00:27]} Ke6 {[%emt 0:00:32]} 33. Rd1 {[%emt 0:00:06]} Nf5 {[%emt 0:00:33]} 34. Bh3 {[%emt 0:01:03] Threatens to win with Rc6+.} g6 {[%emt 0:00:03]} (34... Ree2 $5) 35. Rxh7 {[%emt 0:00:26]} Kf6 {[%emt 0:00:59] [#]} 36. Rf1 $1 {[%emt 0:00:33] Strongly threatening g4.} Kg5 {[%emt 0:00:32] [#]} 37. Bg2 {[%emt 0:00:28]} (37. Bxf5 $1 $16 gxf5 38. Rf7) 37... Re3 $11 {[%emt 0:00:36]} 38. Rf2 {[%emt 0:00:34]} Rb1+ {[%emt 0:00:11]} 39. Rf1 {[%emt 0:00:08]} Rb2 {[%emt 0:00:01]} 40. Bf3 {[%emt 0:00:42]} Rc3 {[%emt 0:00:35]} 41. Bd1 {[%emt 0:00:39]} (41. Rb7 $14 Rxb7 42. Bxb7) 41... Rd2 {[%emt 0:01:09]} 42. Bf3 {[%emt 0:00:33]} Nd4 {[%emt 0:00:47]} 43. Bd1 {[%emt 0:00:27][%csl Gg3,Gh7][%cal Rh2h4]} Nf5 {[%emt 0:00:01]} 44. Bf3 {[%emt 0:00:31]} Nd4 {[%emt 0:00:02]} 45. Bg2 {[%emt 0:00:31]} Nf5 {[%emt 0:00:04]} 46. Bf3 {[%emt 0:00:32] Weighted Error Value: White=0.12 (very precise) /Black=0.13 (very precise) .  Mistake:       	White=3     	Black=2      Inaccurate:     	White=4     	Black=5      OK:         	White=12    	Black=15     Best:        	White=3     	Black=2      Strong:       	White=2     	---} 1/2-1/2

[Event "Arona Festival 2024"]
[Site "Arona Tenerife"]
[Date "2024.06.23"]
[Round "3.6"]
[White "Sosa, Tomas"]
[Black "Van der Lende, Ilias"]
[Result "1-0"]
[ECO "C04"]
[WhiteElo "2535"]
[BlackElo "2415"]
[Annotator "TA"]
[PlyCount "63"]
[EventDate "2024.06.20"]
[EventType "swiss"]
[EventCountry "ESP"]
[SourceTitle "playchess.com"]
[Source "ChessBase"]
[SourceQuality "1"]
[TimeControl "5400+30"]

{[%evp 13,63,63,42,48,49,47,33,46,52,26,31,0,50,41,64,-16,-6,-12,0,-2,25,31,29,14,118,134,145,72,65,63,131,147,134,117,133,127,154,177,265,283,422,454,441,447,584,628,600,604,625,606,581,398]} 1. e4 {[%emt 0:09:42]} e6 {[%emt 0:00:05]} 2. d4 {[%emt 0:00:14]} d5 {[%emt 0:00:06]} 3. Nd2 {[%emt 0:00:05][%cal Bb1d2,Bd2f1,Bf1e3,Be3g4][%mdl 32]} Nc6 {[%emt 0:00:11]} 4. Ngf3 {[%emt 0:00:08]} Nf6 {[%emt 0:00:08]} 5. e5 {[%emt 0:00:02]} Nd7 {[%emt 0:00:07]} 6. Be2 {[%emt 0:00:05]} f6 {[%emt 0:00:09]} 7. exf6 {[%emt 0:00:05]} Qxf6 {[%emt 0:00:05]} 8. Nf1 {[%emt 0:00:06]} b6 {[%emt 0:00:19]} 9. Ne3 {[%emt 0:00:08]} Bb7 {[%emt 0:00:09]} 10. O-O {[%emt 0:00:23] White is slightly better.} O-O-O {[%emt 0:02:05]} 11. Ng4 {[%emt 0:00:32]} Qf5 {[%emt 0:03:15]} 12. Ne3 {[%emt 0:01:20]} Qf6 {[%emt 0:00:32]} 13. c3 {[%emt 0:00:05]} h5 {[%emt 0:08:58]} 14. c4 {[%emt 0:07:53]} ({White should play} 14. Nc2 $14) 14... dxc4 $11 {[%emt 0:09:57]} 15. Nxc4 {[%emt 0:00:12]} Be7 $1 {[%emt 0:00:36]} 16. Bg5 {[%emt 0:00:47]} Qf5 {[%emt 0:04:54]} 17. Bd3 {[%emt 0:02:16]} Qf7 {[%emt 0:00:37]} 18. Re1 $36 {[%emt 0:07:58][%cal Bf1e1,Be1e4,Be4e6,Be6c6][%mdl 2080] Black should prevent Bxe7. Black is under pressure.} Rhf8 {[%emt 0:01:27]} (18... Nxd4 $1 $11 {remains equal.} 19. Nxd4 Bxg5 20. Nxe6 Rde8 21. Nd6+ (21. Nxg5 Rxe1+ 22. Qxe1 Qd5 $11) 21... cxd6 22. Nxg5 Rxe1+ 23. Qxe1 Qf6) 19. Bxe7 $16 {[%emt 0:02:26]} Nxe7 {[%emt 0:01:56] [#]} 20. Be4 {[%emt 0:00:50] White is more active.} (20. Qc2 $142 $1 {Black must now prevent Nd6+.} Qf4 (20... Bxf3 $2 21. Nd6+ Kb8 22. Nxf7 $18) 21. Rac1 (21. Rxe6 Bxf3 22. gxf3 Kb8 $14)) 20... Bxe4 {[%emt 0:20:17]} 21. Rxe4 {[%emt 0:00:09]} Qg6 {[%emt 0:00:07]} (21... Qf5 $14 22. Re1 Nc6) 22. Qe2 {[%emt 0:02:31]} Nd5 {[%emt 0:05:48]} 23. Rxe6 {[%emt 0:09:55]} Qf7 {[%emt 0:00:42] [#] ...Nf4 is the strong threat.} 24. Rc1 {[%emt 0:00:43] Strongly threatening Nd6+.} Kb7 {[%emt 0:06:10]} (24... Nf4 $2 25. Nd6+ Kb8 26. Nxf7 $18) 25. Rc6 {[%emt 0:03:22][%cal Oc6c7] Rxc7+! would now be deadly.} Qf4 {[%emt 0:06:49]} (25... Nb8 $142 26. Nce5 Qf5) 26. Ne3 $18 {[%emt 0:02:48]} N7f6 {[%emt 0:00:23]} (26... Rfe8 {keeps fighting.} 27. g3 (27. Nxd5 $2 {is the wrong capture.} Qxc1+ 28. Rxc1 Rxe2 $19) 27... Rxe3 28. Qxe3 (28. fxe3 Qg4 $18) 28... Qxe3 29. fxe3 Re8) 27. g3 {[%emt 0:01:57] White is clearly winning.} Qe4 {[%emt 0:03:39]} 28. Ng5 {[%emt 0:00:37] Wards off Nh7} Qxd4 {[%emt 0:00:17]} 29. Nxd5 {[%emt 0:04:00]} Nxd5 {[%emt 0:02:43]} 30. Ne6 {[%emt 0:00:45]} (30. Qxh5 Qxf2+ 31. Kh1 Ne3 (31... Qxb2 $2 32. Ne6 $19) 32. Rxc7+ Ka6 33. Qh3 Rh8 (33... Qxb2 $2 34. g4 $19) 34. Rf7 Qxb2 35. Rg1 Rxh3 36. Nxh3 Rd1 (36... Qxa2 {is a self mate.} 37. Rf2 Qd5+ 38. Rfg2 Nxg2 39. Ra1+ Kb7 40. Kg1 Ne3 41. Kf2 Ng4+ 42. Kf1 Qd2 43. Kg1 Qxh2+ 44. Kf1 Ne3+ 45. Ke1 Qd2#) 37. Nf2 Rxg1+ 38. Kxg1 Qe2 (38... Qxa2 $2 39. Re7 $19) (38... Qxa2 39. Re7 Qb1+ 40. Nd1 Qxd1+ 41. Kf2 Ng4+ 42. Kg2 Qd5+ 43. Kf1 Qd2 44. Re2 Qd1+ 45. Kg2 Qxe2+ 46. Kh3 Ne5 47. Kh4 Qg4#)) 30... Qf6 {[%emt 0:00:20]} 31. Nxd8+ {[%emt 0:07:04]} Qxd8 {[%emt 0:00:09]} 32. Qxh5 {[%emt 0:00:10] Weighted Error Value: White=0.12 (very precise) /Black=0.40.  Mistake:       	White=2     	Black=4      Inaccurate:     	White=1     	Black=2      OK:         	White=4     	Black=6      Best:        	White=3     	Black=1      Strong:       	---       	Black=1} 1-0